[Event "*** Titled Tuesday Blitz"]
[Site "Chess.com"]
[Date "2020.05.05"]
[Round "8"]
[White "IwkooO"]
[Black "Bodnar_Mykola"]
[Result "1-0"]
[WhiteElo "2576"]
[BlackElo "2445"]
[TimeControl "180+1"]
[EndTime "11:36:16 PDT"]
[Termination "IwkooO won by resignation"]

1. e4 {[%clk 0:02:59.9]} 1... e5 {[%clk 0:02:59.4]} 2. Nf3 {[%clk 0:02:59.5]}
2... Nc6 {[%clk 0:02:59.5]} 3. Bb5 {[%clk 0:03:00]} 3... a6 {[%clk 0:02:57.5]}
4. Ba4 {[%clk 0:03:00.3]} 4... Nf6 {[%clk 0:02:57.6]} 5. O-O {[%clk 0:03:00.4]}
5... b5 {[%clk 0:02:56.7]} 6. Bb3 {[%clk 0:03:00.2]} 6... Be7 {[%clk 0:02:57.2]}
7. Re1 {[%clk 0:02:59.5]} 7... O-O {[%clk 0:02:56.4]} 8. h3 {[%clk 0:02:58]}
8... d6 {[%clk 0:02:54.3]} 9. c3 {[%clk 0:02:58.1]} 9... Na5 {[%clk 0:02:53.9]}
10. Bc2 {[%clk 0:02:57.6]} 10... c5 {[%clk 0:02:54.4]} 11. d4 {[%clk 0:02:58.1]}
11... Qc7 {[%clk 0:02:53.4]} 12. Nbd2 {[%clk 0:02:57.1]} 12... Bd7 {[%clk
0:02:44.7]} 13. d5 {[%clk 0:02:47.7]} 13... c4 {[%clk 0:02:35.2]} 14. Nf1 {[%clk
0:02:42.5]} 14... Rfe8 {[%clk 0:02:24]} 15. g4 {[%clk 0:02:41.4]} 15... g6
{[%clk 0:02:19]} 16. Ng3 {[%clk 0:02:40.9]} 16... Bf8 {[%clk 0:02:18.8]} 17. g5
{[%clk 0:02:34.6]} 17... Nh5 {[%clk 0:02:16.2]} 18. Nxh5 {[%clk 0:02:34.6]}
18... gxh5 {[%clk 0:02:17.1]} 19. Kh2 {[%clk 0:02:24.6]} 19... Qc8 {[%clk
0:02:13.4]} 20. Ng1 {[%clk 0:02:10.3]} 20... h4 {[%clk 0:02:05.9]} 21. Qh5
{[%clk 0:02:09.9]} 21... Bg7 {[%clk 0:01:57.3]} 22. Qxh4 {[%clk 0:02:08.6]}
22... Rf8 {[%clk 0:01:57.4]} 23. Ne2 {[%clk 0:01:59]} 23... f6 {[%clk
0:01:53.9]} 24. Rg1 {[%clk 0:01:44.5]} 24... fxg5 {[%clk 0:01:50.9]} 25. Bxg5
{[%clk 0:01:43.6]} 25... Kh8 {[%clk 0:01:48.5]} 26. Rg2 {[%clk 0:00:55.7]} 26...
Rf7 {[%clk 0:01:48]} 27. Rag1 {[%clk 0:00:54.2]} 27... Qf8 {[%clk 0:01:43.9]}
28. Be3 {[%clk 0:00:29.6]} 28... Nb7 {[%clk 0:01:39.2]} 29. Ng3 {[%clk
0:00:29.5]} 29... Bf6 {[%clk 0:01:34]} 30. Qh5 {[%clk 0:00:27.8]} 30... Qe7
{[%clk 0:01:13.2]} 31. Qe2 {[%clk 0:00:22.4]} 31... Rg8 {[%clk 0:01:10.2]} 32.
Nh5 {[%clk 0:00:21.9]} 32... Rxg2+ {[%clk 0:01:08.1]} 33. Rxg2 {[%clk
0:00:22.8]} 33... Bh4 {[%clk 0:01:04.9]} 34. Bh6 {[%clk 0:00:23.3]} 34... Nc5
{[%clk 0:00:54.3]} 35. Bg7+ {[%clk 0:00:19.1]} 35... Rxg7 {[%clk 0:00:51.9]} 36.
Rxg7 {[%clk 0:00:20]} 36... Qxg7 {[%clk 0:00:48.7]} 37. Nxg7 {[%clk 0:00:20]}
37... Kxg7 {[%clk 0:00:49.6]} 38. b4 {[%clk 0:00:18]} 38... cxb3 {[%clk
0:00:46.6]} 39. axb3 {[%clk 0:00:18.9]} 39... Bg5 {[%clk 0:00:45.3]} 40. b4
{[%clk 0:00:19.1]} 40... Bf4+ {[%clk 0:00:39]} 41. Kg2 {[%clk 0:00:18.9]} 41...
Nb7 {[%clk 0:00:39.3]} 42. Bd1 {[%clk 0:00:19.4]} 42... Nd8 {[%clk 0:00:38.3]}
43. Qh5 {[%clk 0:00:19.9]} 43... Nf7 {[%clk 0:00:37.6]} 44. Bg4 {[%clk
0:00:20.4]} 44... Be8 {[%clk 0:00:37]} 45. Qf5 {[%clk 0:00:16.9]} 45... Ng5
{[%clk 0:00:35.3]} 46. Qc8 {[%clk 0:00:16.4]} 46... Bg6 {[%clk 0:00:32.6]} 47.
f3 {[%clk 0:00:16.5]} 47... h5 {[%clk 0:00:31.9]} 48. Bf5 {[%clk 0:00:17.1]}
48... Bf7 {[%clk 0:00:30.5]} 49. Qxa6 {[%clk 0:00:16.5]} 49... Be3 {[%clk
0:00:26.9]} 50. Qxb5 {[%clk 0:00:16.1]} 50... h4 {[%clk 0:00:24.6]} 51. Qd7
{[%clk 0:00:14.7]} 51... Kf6 {[%clk 0:00:23.9]} 52. Qxd6+ {[%clk 0:00:13.7]}
52... Kg7 {[%clk 0:00:24.1]} 53. Qxe5+ {[%clk 0:00:14.2]} 53... Kf8 {[%clk
0:00:23.6]} 54. d6 {[%clk 0:00:12.3]} 1-0

[Event "*** Titled Tuesday Blitz"]
[Site "Chess.com"]
[Date "2020.05.05"]
[Round "8"]
[White "Sesleria"]
[Black "coalescenet"]
[Result "1-0"]
[WhiteElo "2065"]
[BlackElo "2248"]
[TimeControl "180+1"]
[EndTime "11:36:17 PDT"]
[Termination "Sesleria won on time"]

1. e4 {[%clk 0:02:59.7]} 1... c6 {[%clk 0:02:36.5]} 2. c4 {[%clk 0:02:53.1]}
2... d5 {[%clk 0:02:37.4]} 3. cxd5 {[%clk 0:02:53]} 3... cxd5 {[%clk 0:02:37]}
4. exd5 {[%clk 0:02:53.2]} 4... Nf6 {[%clk 0:02:37.6]} 5. Nc3 {[%clk 0:02:53.2]}
5... Nxd5 {[%clk 0:02:38.2]} 6. Bc4 {[%clk 0:02:52.4]} 6... e6 {[%clk
0:02:35.9]} 7. Nf3 {[%clk 0:02:51.2]} 7... Be7 {[%clk 0:02:36.1]} 8. O-O {[%clk
0:02:50]} 8... O-O {[%clk 0:02:35]} 9. d4 {[%clk 0:02:47.5]} 9... Bf6 {[%clk
0:02:29.4]} 10. Re1 {[%clk 0:02:41.4]} 10... Nc6 {[%clk 0:02:28.7]} 11. Ne4
{[%clk 0:02:16.4]} 11... Nb6 {[%clk 0:02:15.7]} 12. Nxf6+ {[%clk 0:02:11.1]}
12... Qxf6 {[%clk 0:02:16.6]} 13. Bd3 {[%clk 0:02:07.7]} 13... g6 {[%clk
0:02:13.7]} 14. Bg5 {[%clk 0:02:03.6]} 14... Qg7 {[%clk 0:02:13.3]} 15. Be4
{[%clk 0:01:40.3]} 15... f6 {[%clk 0:01:59.1]} 16. Be3 {[%clk 0:01:36]} 16...
Rd8 {[%clk 0:01:41.4]} 17. Qb3 {[%clk 0:01:27.4]} 17... Na5 {[%clk 0:01:36]} 18.
Qc3 {[%clk 0:01:13.2]} 18... Nac4 {[%clk 0:01:35.5]} 19. Bf4 {[%clk 0:01:02]}
19... Bd7 {[%clk 0:01:25]} 20. b3 {[%clk 0:00:41.9]} 20... Na3 {[%clk
0:01:24.3]} 21. Qc5 {[%clk 0:00:39.9]} 21... Qf8 {[%clk 0:01:05.5]} 22. Qxf8+
{[%clk 0:00:33.7]} 22... Kxf8 {[%clk 0:01:06.4]} 23. Bd6+ {[%clk 0:00:33.7]}
23... Kg7 {[%clk 0:01:02.7]} 24. Bxa3 {[%clk 0:00:34]} 24... Be8 {[%clk
0:01:00.5]} 25. Bxb7 {[%clk 0:00:33]} 25... Rab8 {[%clk 0:01:00.5]} 26. Be4
{[%clk 0:00:32]} 26... Bf7 {[%clk 0:01:00.7]} 27. Rac1 {[%clk 0:00:31.4]} 27...
Rd7 {[%clk 0:00:55.2]} 28. Rc6 {[%clk 0:00:25.8]} 28... Nc8 {[%clk 0:00:49.5]}
29. Rec1 {[%clk 0:00:25.1]} 29... Ne7 {[%clk 0:00:49.7]} 30. Bxe7 {[%clk
0:00:24.6]} 30... Rxe7 {[%clk 0:00:50.6]} 31. Rc7 {[%clk 0:00:25]} 31... Rbe8
{[%clk 0:00:46]} 32. h3 {[%clk 0:00:23.8]} 32... h6 {[%clk 0:00:42.1]} 33. Bd3
{[%clk 0:00:22.8]} 33... Kf8 {[%clk 0:00:40.1]} 34. Bb5 {[%clk 0:00:22.3]} 34...
Rxc7 {[%clk 0:00:36.4]} 35. Rxc7 {[%clk 0:00:22.2]} 35... Rb8 {[%clk 0:00:37.1]}
36. a4 {[%clk 0:00:20.9]} 36... a6 {[%clk 0:00:37.1]} 37. Bc4 {[%clk 0:00:21.2]}
37... Rb6 {[%clk 0:00:36.4]} 38. Nd2 {[%clk 0:00:19.9]} 38... Be8 {[%clk
0:00:31.2]} 39. Rc8 {[%clk 0:00:19.8]} 39... Ke7 {[%clk 0:00:30.9]} 40. Ne4
{[%clk 0:00:19.7]} 40... Bd7 {[%clk 0:00:30]} 41. Rc7 {[%clk 0:00:19.1]} 41...
Kd8 {[%clk 0:00:28.2]} 42. Ra7 {[%clk 0:00:19.6]} 42... f5 {[%clk 0:00:21.6]}
43. Nc5 {[%clk 0:00:19.5]} 43... Bc8 {[%clk 0:00:18.5]} 44. f4 {[%clk
0:00:18.5]} 44... g5 {[%clk 0:00:15.5]} 45. g3 {[%clk 0:00:18.4]} 45... Rd6
{[%clk 0:00:15.9]} 46. Ra8 {[%clk 0:00:17.5]} 46... Kc7 {[%clk 0:00:15.1]} 47.
Rxc8+ {[%clk 0:00:15.3]} 47... Kxc8 {[%clk 0:00:15.3]} 48. Nxe6 {[%clk
0:00:15.7]} 48... a5 {[%clk 0:00:14]} 49. Kf2 {[%clk 0:00:15.1]} 49... gxf4
{[%clk 0:00:13.7]} 50. gxf4 {[%clk 0:00:14.8]} 50... Kd7 {[%clk 0:00:14.6]} 51.
Ke3 {[%clk 0:00:14.5]} 51... Ke7 {[%clk 0:00:14.8]} 52. d5 {[%clk 0:00:13.4]}
52... Rb6 {[%clk 0:00:15.2]} 53. Kd4 {[%clk 0:00:13.6]} 53... Rb8 {[%clk
0:00:15.5]} 54. Ke5 {[%clk 0:00:13.6]} 54... Rg8 {[%clk 0:00:14.2]} 55. d6+
{[%clk 0:00:13.3]} 55... Ke8 {[%clk 0:00:13.2]} 56. Nc7+ {[%clk 0:00:12.1]}
56... Kf8 {[%clk 0:00:11.9]} 57. Bxg8 {[%clk 0:00:12.7]} 57... Kxg8 {[%clk
0:00:12.3]} 58. d7 {[%clk 0:00:13.2]} 1-0

[Event "*** Titled Tuesday Blitz"]
[Site "Chess.com"]
[Date "2020.05.05"]
[Round "8"]
[White "Manukyan_Artak"]
[Black "EfrenRamos1"]
[Result "0-1"]
[WhiteElo "2321"]
[BlackElo "2192"]
[TimeControl "180+1"]
[EndTime "11:36:18 PDT"]
[Termination "EfrenRamos1 won by resignation"]

1. e4 {[%clk 0:03:00.9]} 1... c6 {[%clk 0:02:59.2]} 2. d4 {[%clk 0:03:00.5]}
2... d5 {[%clk 0:03:00.1]} 3. e5 {[%clk 0:03:00.8]} 3... c5 {[%clk 0:02:59.5]}
4. dxc5 {[%clk 0:02:59.6]} 4... e6 {[%clk 0:02:58.6]} 5. a3 {[%clk 0:02:58.5]}
5... Bxc5 {[%clk 0:02:57.3]} 6. b4 {[%clk 0:02:55.3]} 6... Bb6 {[%clk 0:02:57]}
7. c4 {[%clk 0:02:47]} 7... dxc4 {[%clk 0:02:54.4]} 8. Qxd8+ {[%clk 0:02:45.7]}
8... Kxd8 {[%clk 0:02:50.5]} 9. Bb2 {[%clk 0:02:45.7]} 9... Nc6 {[%clk
0:02:47.3]} 10. Nf3 {[%clk 0:02:38.8]} 10... Nge7 {[%clk 0:02:45.2]} 11. Bxc4
{[%clk 0:02:37.3]} 11... Ng6 {[%clk 0:02:45.3]} 12. Nbd2 {[%clk 0:02:25.9]}
12... Ke7 {[%clk 0:02:41.3]} 13. Ne4 {[%clk 0:02:10.2]} 13... Rd8 {[%clk
0:02:37.2]} 14. O-O {[%clk 0:02:00.9]} 14... Nd4 {[%clk 0:02:13.7]} 15. Nd6
{[%clk 0:01:46.6]} 15... Nxf3+ {[%clk 0:02:10.5]} 16. gxf3 {[%clk 0:01:45.8]}
16... Bd7 {[%clk 0:01:58.1]} 17. Nxb7 {[%clk 0:01:41]} 17... Rdc8 {[%clk
0:01:55.9]} 18. Nd6 {[%clk 0:01:27.6]} 18... Rc7 {[%clk 0:01:40.1]} 19. Ba6
{[%clk 0:01:18.6]} 19... Nh4 {[%clk 0:01:37.3]} 20. Rfc1 {[%clk 0:01:12.3]}
20... Nxf3+ {[%clk 0:00:45.3]} 21. Kg2 {[%clk 0:01:11.2]} 21... Nh4+ {[%clk
0:00:38.8]} 22. Kg3 {[%clk 0:01:09.7]} 22... Ng6 {[%clk 0:00:38.8]} 23. f4
{[%clk 0:01:00.7]} 23... Rxc1 {[%clk 0:00:31.6]} 24. Rxc1 {[%clk 0:00:56.8]}
24... Be3 {[%clk 0:00:31.8]} 25. Rc4 {[%clk 0:00:57]} 25... f6 {[%clk
0:00:29.3]} 26. Kf3 {[%clk 0:00:38]} 26... Bb6 {[%clk 0:00:27.9]} 27. Nc8+
{[%clk 0:00:25]} 27... Bxc8 {[%clk 0:00:25.9]} 28. Rxc8 {[%clk 0:00:25.7]} 28...
Rxc8 {[%clk 0:00:24.8]} 29. Bxc8 {[%clk 0:00:26.6]} 29... fxe5 {[%clk
0:00:24.9]} 30. fxe5 {[%clk 0:00:26.6]} 30... Bc7 {[%clk 0:00:24.5]} 31. Ke4
{[%clk 0:00:26.4]} 31... Nh4 {[%clk 0:00:23.9]} 32. a4 {[%clk 0:00:25.6]} 32...
Nf5 {[%clk 0:00:22]} 33. b5 {[%clk 0:00:21.8]} 33... Kf7 {[%clk 0:00:20.2]} 34.
Bc3 {[%clk 0:00:20.7]} 34... Ne7 {[%clk 0:00:20.2]} 35. Bd7 {[%clk 0:00:19.1]}
35... Nd5 {[%clk 0:00:20.5]} 36. Bd2 {[%clk 0:00:19.4]} 36... Nb6 {[%clk
0:00:19.6]} 37. a5 {[%clk 0:00:18.5]} 37... Nxd7 {[%clk 0:00:19.4]} 38. Bc3
{[%clk 0:00:14.5]} 38... Nc5+ {[%clk 0:00:18]} 39. Kd4 {[%clk 0:00:14.4]} 39...
Nb3+ {[%clk 0:00:18]} 40. Kc4 {[%clk 0:00:14]} 40... Nxa5+ {[%clk 0:00:18.9]}
41. Kc5 {[%clk 0:00:14.2]} 41... Bb6+ {[%clk 0:00:18.1]} 42. Kd6 {[%clk
0:00:13.2]} 42... Nb7+ {[%clk 0:00:19]} 43. Kd7 {[%clk 0:00:13.2]} 43... Nc5+
{[%clk 0:00:19.7]} 44. Kc6 {[%clk 0:00:11.5]} 44... Ne4 {[%clk 0:00:20]} 45. Bb4
{[%clk 0:00:11.4]} 45... g5 {[%clk 0:00:19.6]} 46. Bd6 {[%clk 0:00:08.6]} 46...
g4 {[%clk 0:00:19.6]} 47. Bb8 {[%clk 0:00:08.5]} 47... h5 {[%clk 0:00:19.3]} 48.
Kb7 {[%clk 0:00:08.6]} 48... Nc5+ {[%clk 0:00:19.2]} 49. Kc6 {[%clk 0:00:08.4]}
49... Na4 {[%clk 0:00:18.8]} 50. Kb7 {[%clk 0:00:07.6]} 50... h4 {[%clk
0:00:18.2]} 51. Bxa7 {[%clk 0:00:07.8]} 51... Bxa7 {[%clk 0:00:18]} 52. Kxa7
{[%clk 0:00:07.6]} 52... g3 {[%clk 0:00:16.7]} 53. hxg3 {[%clk 0:00:08.5]} 53...
hxg3 {[%clk 0:00:16]} 54. Ka6 {[%clk 0:00:09.1]} 54... g2 {[%clk 0:00:16.1]} 55.
Ka5 {[%clk 0:00:08.7]} 55... g1=Q {[%clk 0:00:16.5]} 0-1

[Event "*** Titled Tuesday Blitz"]
[Site "Chess.com"]
[Date "2020.05.05"]
[Round "8"]
[White "sergeikim"]
[Black "Arjun2002"]
[Result "0-1"]
[WhiteElo "2473"]
[BlackElo "2643"]
[TimeControl "180+1"]
[EndTime "11:36:19 PDT"]
[Termination "Arjun2002 won on time"]

1. d4 {[%clk 0:03:00.9]} 1... d5 {[%clk 0:03:00.1]} 2. c4 {[%clk 0:03:00.4]}
2... c6 {[%clk 0:03:00.4]} 3. Nf3 {[%clk 0:02:59.5]} 3... Nf6 {[%clk 0:03:00.7]}
4. Qc2 {[%clk 0:02:59]} 4... g6 {[%clk 0:02:56.8]} 5. e3 {[%clk 0:02:58.2]} 5...
Bg7 {[%clk 0:02:54.9]} 6. Bd3 {[%clk 0:02:57.7]} 6... O-O {[%clk 0:02:53.9]} 7.
Nbd2 {[%clk 0:02:56.8]} 7... c5 {[%clk 0:02:40.3]} 8. dxc5 {[%clk 0:02:47.6]}
8... Na6 {[%clk 0:02:39.5]} 9. a3 {[%clk 0:02:46.8]} 9... Nxc5 {[%clk 0:02:39]}
10. Be2 {[%clk 0:02:46.2]} 10... Bf5 {[%clk 0:02:38.4]} 11. Qd1 {[%clk
0:02:40.1]} 11... Nd3+ {[%clk 0:02:32.9]} 12. Kf1 {[%clk 0:02:29.5]} 12... Rc8
{[%clk 0:02:25.3]} 13. Nd4 {[%clk 0:02:22.2]} 13... Nxc1 {[%clk 0:02:20.7]} 14.
Rxc1 {[%clk 0:02:21.4]} 14... Bd7 {[%clk 0:02:17.8]} 15. cxd5 {[%clk 0:02:09.1]}
15... Rxc1 {[%clk 0:02:16.1]} 16. Qxc1 {[%clk 0:02:08.2]} 16... Nxd5 {[%clk
0:02:16.7]} 17. Kg1 {[%clk 0:01:54.6]} 17... Bxd4 {[%clk 0:02:09.9]} 18. exd4
{[%clk 0:01:53.8]} 18... Bc6 {[%clk 0:02:09.7]} 19. Nf3 {[%clk 0:01:50.5]} 19...
Nf6 {[%clk 0:02:05.8]} 20. h3 {[%clk 0:01:46.2]} 20... Qd6 {[%clk 0:02:05.9]}
21. Qc5 {[%clk 0:01:23.7]} 21... Qf4 {[%clk 0:01:42.7]} 22. Qe5 {[%clk
0:01:18.2]} 22... Nd5 {[%clk 0:01:28.7]} 23. Qxf4 {[%clk 0:00:41]} 23... Nxf4
{[%clk 0:01:28]} 24. Bd1 {[%clk 0:00:41.5]} 24... Rd8 {[%clk 0:01:25.8]} 25. g3
{[%clk 0:00:40]} 25... Ne6 {[%clk 0:01:23.1]} 26. Kh2 {[%clk 0:00:35.6]} 26...
Nxd4 {[%clk 0:01:23.1]} 27. Kg2 {[%clk 0:00:31.9]} 27... Nxf3 {[%clk 0:01:09]}
28. Bxf3 {[%clk 0:00:31.1]} 28... Bxf3+ {[%clk 0:01:08.9]} 29. Kxf3 {[%clk
0:00:31]} 29... Rd2 {[%clk 0:01:08.8]} 30. Rb1 {[%clk 0:00:29.2]} 30... f5
{[%clk 0:01:04]} 31. h4 {[%clk 0:00:27.6]} 31... Kf7 {[%clk 0:01:03.6]} 32. Ke3
{[%clk 0:00:27.5]} 32... Rc2 {[%clk 0:01:03.1]} 33. a4 {[%clk 0:00:25.7]} 33...
h6 {[%clk 0:00:57.6]} 34. b4 {[%clk 0:00:18.8]} 34... b6 {[%clk 0:00:42.5]} 35.
a5 {[%clk 0:00:15.1]} 35... Ra2 {[%clk 0:00:25.4]} 36. axb6 {[%clk 0:00:14.2]}
36... axb6 {[%clk 0:00:26.3]} 37. Rc1 {[%clk 0:00:11.2]} 37... Rb2 {[%clk
0:00:26.4]} 38. Rc4 {[%clk 0:00:09]} 38... b5 {[%clk 0:00:24.5]} 39. Rd4 {[%clk
0:00:07.4]} 39... Kf6 {[%clk 0:00:16.4]} 40. f4 {[%clk 0:00:05.8]} 40... e6
{[%clk 0:00:15.9]} 41. Kf3 {[%clk 0:00:05]} 41... Rb3+ {[%clk 0:00:16]} 42. Kf2
{[%clk 0:00:04.7]} 42... g5 {[%clk 0:00:16.4]} 43. hxg5+ {[%clk 0:00:01.6]}
43... hxg5 {[%clk 0:00:16.7]} 44. Kg2 {[%clk 0:00:01.8]} 44... g4 {[%clk
0:00:16.4]} 45. Kf2 {[%clk 0:00:01.7]} 45... Ke7 {[%clk 0:00:15.6]} 46. Kg2
{[%clk 0:00:02.2]} 46... Rc3 {[%clk 0:00:15.9]} 47. Kf2 {[%clk 0:00:02.7]} 47...
Ra3 {[%clk 0:00:13]} 48. Kg2 {[%clk 0:00:02.9]} 48... Rb3 {[%clk 0:00:13.1]} 49.
Kf2 {[%clk 0:00:03.1]} 49... Rc3 {[%clk 0:00:13.5]} 50. Kg2 {[%clk 0:00:02.9]}
50... Rc4 {[%clk 0:00:13.8]} 0-1

[Event "*** Titled Tuesday Blitz"]
[Site "Chess.com"]
[Date "2020.05.05"]
[Round "8"]
[White "yarosavich"]
[Black "Trankuilizer"]
[Result "0-1"]
[WhiteElo "2703"]
[BlackElo "2556"]
[TimeControl "180+1"]
[EndTime "11:36:20 PDT"]
[Termination "Trankuilizer won by resignation"]

1. d4 {[%clk 0:02:47.4]} 1... d5 {[%clk 0:02:59.2]} 2. c4 {[%clk 0:02:45.5]}
2... e6 {[%clk 0:02:59.4]} 3. Nf3 {[%clk 0:02:45.3]} 3... Nf6 {[%clk 0:02:59.4]}
4. Nc3 {[%clk 0:02:45.9]} 4... Be7 {[%clk 0:02:59]} 5. Bf4 {[%clk 0:02:46.1]}
5... O-O {[%clk 0:02:57.5]} 6. e3 {[%clk 0:02:46.6]} 6... Nbd7 {[%clk
0:02:57.9]} 7. cxd5 {[%clk 0:02:45.8]} 7... exd5 {[%clk 0:02:55.3]} 8. Bd3
{[%clk 0:02:44.4]} 8... c6 {[%clk 0:02:54.7]} 9. h3 {[%clk 0:02:44]} 9... Re8
{[%clk 0:02:55]} 10. Qc2 {[%clk 0:02:41.7]} 10... Nf8 {[%clk 0:02:55.2]} 11. Ne5
{[%clk 0:02:38.9]} 11... Bd6 {[%clk 0:02:54.7]} 12. O-O {[%clk 0:02:29]} 12...
Qe7 {[%clk 0:02:44]} 13. Bh2 {[%clk 0:02:27.2]} 13... N6d7 {[%clk 0:02:43.9]}
14. Nxd7 {[%clk 0:01:53.2]} 14... Bxd7 {[%clk 0:02:36.5]} 15. Rae1 {[%clk
0:01:44.6]} 15... Bxh2+ {[%clk 0:02:18.1]} 16. Kxh2 {[%clk 0:01:45.5]} 16...
Rad8 {[%clk 0:02:18.2]} 17. Kg1 {[%clk 0:01:37.7]} 17... Qg5 {[%clk 0:02:14.8]}
18. f4 {[%clk 0:01:35.8]} 18... Qh6 {[%clk 0:02:06.7]} 19. Qf2 {[%clk
0:01:24.1]} 19... Ng6 {[%clk 0:02:02.8]} 20. f5 {[%clk 0:01:11.4]} 20... Nf8
{[%clk 0:02:02.1]} 21. f6 {[%clk 0:01:06.4]} 21... g6 {[%clk 0:02:01.3]} 22. Qg3
{[%clk 0:00:57]} 22... Ne6 {[%clk 0:01:58.9]} 23. b4 {[%clk 0:00:46.4]} 23...
Bc8 {[%clk 0:01:56.5]} 24. a4 {[%clk 0:00:43.4]} 24... a6 {[%clk 0:01:53.7]} 25.
Kh2 {[%clk 0:00:38.6]} 25... Qf8 {[%clk 0:01:39]} 26. Rb1 {[%clk 0:00:34.4]}
26... Qd6 {[%clk 0:01:26]} 27. Qxd6 {[%clk 0:00:22.2]} 27... Rxd6 {[%clk
0:01:26.9]} 28. h4 {[%clk 0:00:22.8]} 28... Nf8 {[%clk 0:01:17.2]} 29. Rf3
{[%clk 0:00:20.2]} 29... Bg4 {[%clk 0:01:11.3]} 30. Rg3 {[%clk 0:00:20.4]} 30...
h5 {[%clk 0:01:08.1]} 31. Rf1 {[%clk 0:00:18.9]} 31... Nd7 {[%clk 0:01:01.1]}
32. e4 {[%clk 0:00:18.4]} 32... dxe4 {[%clk 0:00:54.6]} 33. Nxe4 {[%clk
0:00:18.3]} 33... Rxd4 {[%clk 0:00:55.1]} 34. Ng5 {[%clk 0:00:18.5]} 34... Rxb4
{[%clk 0:00:42.3]} 35. Bxg6 {[%clk 0:00:17.8]} 35... Ne5 {[%clk 0:00:35.6]} 36.
Bf5 {[%clk 0:00:15.8]} 36... Bxf5 {[%clk 0:00:17.4]} 37. Rxf5 {[%clk 0:00:15.4]}
37... Rxh4+ {[%clk 0:00:12.9]} 38. Nh3+ {[%clk 0:00:15.7]} 38... Ng4+ {[%clk
0:00:12.4]} 39. Kg1 {[%clk 0:00:14.3]} 39... Re1+ {[%clk 0:00:12.5]} 40. Rf1
{[%clk 0:00:14.9]} 40... Rxf1+ {[%clk 0:00:12.4]} 41. Kxf1 {[%clk 0:00:15.8]}
41... Kf8 {[%clk 0:00:12.4]} 42. Ke2 {[%clk 0:00:15.8]} 42... Nxf6 {[%clk
0:00:10.7]} 43. Rf3 {[%clk 0:00:15.1]} 43... Nd5 {[%clk 0:00:10.2]} 44. Ng5
{[%clk 0:00:14.7]} 44... Rf4 {[%clk 0:00:09.2]} 45. Rh3 {[%clk 0:00:13.1]} 45...
Rxa4 {[%clk 0:00:06.9]} 46. Rf3 {[%clk 0:00:13.1]} 46... Rf4 {[%clk 0:00:05.2]}
47. Rb3 {[%clk 0:00:12.5]} 47... Rf5 {[%clk 0:00:05.5]} 48. Nf3 {[%clk
0:00:12.4]} 48... b5 {[%clk 0:00:05.3]} 49. Nd4 {[%clk 0:00:10.9]} 49... Rf6
{[%clk 0:00:05.8]} 50. Ra3 {[%clk 0:00:09.9]} 50... c5 {[%clk 0:00:05.1]} 51.
Nf3 {[%clk 0:00:09.6]} 51... c4 {[%clk 0:00:05]} 52. Ne5 {[%clk 0:00:09.4]}
52... Re6 {[%clk 0:00:05.1]} 0-1

[Event "*** Titled Tuesday Blitz"]
[Site "Chess.com"]
[Date "2020.05.05"]
[Round "8"]
[White "ChesterF"]
[Black "Kislov_Oleg"]
[Result "0-1"]
[WhiteElo "2482"]
[BlackElo "2335"]
[TimeControl "180+1"]
[EndTime "11:36:20 PDT"]
[Termination "Kislov_Oleg won by resignation"]

1. d4 {[%clk 0:03:00.9]} 1... Nf6 {[%clk 0:02:29.5]} 2. c4 {[%clk 0:02:59.4]}
2... e6 {[%clk 0:02:28.3]} 3. Nc3 {[%clk 0:02:58.8]} 3... d5 {[%clk 0:02:28]} 4.
cxd5 {[%clk 0:02:58.2]} 4... exd5 {[%clk 0:02:26.2]} 5. Bg5 {[%clk 0:02:57.4]}
5... Be7 {[%clk 0:02:24]} 6. e3 {[%clk 0:02:55.7]} 6... c6 {[%clk 0:02:23.7]} 7.
Bd3 {[%clk 0:02:54]} 7... O-O {[%clk 0:02:23.3]} 8. Qc2 {[%clk 0:02:51.7]} 8...
h6 {[%clk 0:02:23.6]} 9. Bh4 {[%clk 0:02:51.5]} 9... Re8 {[%clk 0:02:24.1]} 10.
Nf3 {[%clk 0:02:51.3]} 10... Ne4 {[%clk 0:02:19.4]} 11. Bxe7 {[%clk 0:02:28.5]}
11... Qxe7 {[%clk 0:02:19]} 12. Bxe4 {[%clk 0:02:28.4]} 12... dxe4 {[%clk
0:02:19]} 13. Nd2 {[%clk 0:02:28.9]} 13... f5 {[%clk 0:02:18.9]} 14. O-O {[%clk
0:02:28.2]} 14... Be6 {[%clk 0:02:16.8]} 15. Rae1 {[%clk 0:02:25.7]} 15... Nd7
{[%clk 0:02:14.5]} 16. f3 {[%clk 0:02:26.1]} 16... exf3 {[%clk 0:02:13]} 17.
Nxf3 {[%clk 0:02:20.1]} 17... Qd6 {[%clk 0:01:52.1]} 18. Nh4 {[%clk 0:02:08.6]}
18... c5 {[%clk 0:01:42.9]} 19. Nxf5 {[%clk 0:02:02.1]} 19... Bxf5 {[%clk
0:01:41.3]} 20. Rxf5 {[%clk 0:01:43.8]} 20... cxd4 {[%clk 0:01:38.1]} 21. Rd5
{[%clk 0:01:41.5]} 21... Qf6 {[%clk 0:01:15.2]} 22. Rf1 {[%clk 0:01:31.1]} 22...
Qb6 {[%clk 0:01:07.3]} 23. Rxd7 {[%clk 0:01:06.1]} 23... dxc3 {[%clk 0:01:06.5]}
24. Qxc3 {[%clk 0:00:57.4]} 24... Qg6 {[%clk 0:00:27.4]} 25. Rxb7 {[%clk
0:00:44.2]} 25... Rac8 {[%clk 0:00:25.4]} 26. Qb3+ {[%clk 0:00:44.2]} 26... Kh8
{[%clk 0:00:25.6]} 27. Rxa7 {[%clk 0:00:40.2]} 27... Rc2 {[%clk 0:00:22.2]} 28.
Rf2 {[%clk 0:00:15.3]} 28... Rxf2 {[%clk 0:00:20.5]} 29. Kxf2 {[%clk 0:00:15.2]}
29... Rf8+ {[%clk 0:00:20.1]} 30. Ke2 {[%clk 0:00:07.4]} 30... Qxg2+ {[%clk
0:00:16.8]} 31. Kd3 {[%clk 0:00:07.8]} 31... Rd8+ {[%clk 0:00:15.8]} 32. Kc3
{[%clk 0:00:04.7]} 32... Qd2+ {[%clk 0:00:13.5]} 33. Kc4 {[%clk 0:00:05]} 33...
Qd5+ {[%clk 0:00:08.5]} 34. Kc3 {[%clk 0:00:04.6]} 34... Qc5+ {[%clk 0:00:08]}
35. Qc4 {[%clk 0:00:04.1]} 35... Qxa7 {[%clk 0:00:08.2]} 36. a3 {[%clk
0:00:03.7]} 36... Qxe3+ {[%clk 0:00:08.2]} 37. Kb4 {[%clk 0:00:04.1]} 37... Rd4
{[%clk 0:00:08.4]} 38. Qxd4 {[%clk 0:00:03.7]} 38... Qxd4+ {[%clk 0:00:09.3]}
39. Ka5 {[%clk 0:00:04.5]} 39... Qc5+ {[%clk 0:00:09.6]} 40. Ka6 {[%clk
0:00:04.5]} 40... g5 {[%clk 0:00:09.7]} 41. b4 {[%clk 0:00:04.3]} 41... Qc6+
{[%clk 0:00:10.6]} 42. Ka5 {[%clk 0:00:04]} 42... Qa8+ {[%clk 0:00:11.2]} 43.
Kb5 {[%clk 0:00:03.9]} 43... Qxa3 {[%clk 0:00:12.1]} 44. Kc4 {[%clk 0:00:04.2]}
44... g4 {[%clk 0:00:13]} 45. b5 {[%clk 0:00:04.5]} 45... h5 {[%clk 0:00:13.9]}
46. b6 {[%clk 0:00:04.7]} 46... Qb2 {[%clk 0:00:14.6]} 47. Kc5 {[%clk
0:00:04.9]} 47... h4 {[%clk 0:00:15]} 48. Kc6 {[%clk 0:00:04.9]} 48... g3 {[%clk
0:00:15.4]} 49. hxg3 {[%clk 0:00:03.9]} 49... hxg3 {[%clk 0:00:16.2]} 50. b7
{[%clk 0:00:04.2]} 50... g2 {[%clk 0:00:16.3]} 51. b8=Q+ {[%clk 0:00:03.4]}
51... Qxb8 {[%clk 0:00:15.6]} 0-1